fUSD/lending_fUSD_20240524
["ID","MTS","AMOUNT","RATE_DAILY","PERIOD"]
[327827645,1716523833189,-500.0,0.00021094,2]
[327827646,1716523833198,-7085.0401,0.00021136,2]
[327827647,1716523833207,-1069.96,0.0002164,2]
[327827648,1716523833217,-338.57,0.00021768,2]
[327827649,1716523833226,-6773.71234994,0.000219,2]
[327827650,1716523833236,-9157.92762804,0.00022,2]
[327827651,1716523833246,-167.31,0.00022014,2]
[327827652,1716523833255,-154.59697747,0.00022029,2]
[327827653,1716523833265,-10000.0,0.00022051,2]
[327827654,1716523833274,-496.24388538,0.00022057,2]
[327827655,1716523833285,-496.24388538,0.00022082,2]
[327827656,1716523833294,-151.26879495,0.00022098,2]
[327827657,1716523833304,-160.82794801,0.00022235,2]
[327827658,1716523833314,-496.24388538,0.00022301,2]
[327827659,1716523833323,-151.26879495,0.00022359,2]
[327827660,1716523833334,-1000.0,0.00022469,2]
[327827661,1716523833343,-2549.05213827,0.000225,2]
[327827662,1716523833352,-159.69278021,0.00022508,2]
[327827663,1716523833362,-160.82794801,0.00022654,2]
[327827664,1716523833371,-158.32966116,0.00022815,2]
[327827665,1716523833380,-800.0,0.00022849,2]
[327827666,1716523833390,-154.14813988,0.00022886,2]
[327827667,1716523833399,-155.85523435,0.00022898,2]
[327827668,1716523833408,-152.90865082,0.000229,2]
[327827669,1716523833421,-151.26879495,0.00022913,2]
[327827670,1716523833431,-640.78,0.00022916,2]
[327827671,1716523833441,-640.78,0.00022922,2]
[327827672,1716523833454,-640.78,0.00022928,2]
[327827673,1716523833463,-640.78,0.00022934,2]
[327827674,1716523833472,-640.78,0.0002294,2]
[327827675,1716523833483,-640.78,0.00022946,2]
[327827676,1716523833493,-640.78,0.00022952,2]
[327827677,1716523833502,-640.78,0.00022958,2]
[327827678,1716523833511,-640.78,0.00022964,2]
[327827679,1716523833523,-640.78,0.0002297,2]
[327827680,1716523833533,-640.78,0.00022976,2]
[327827681,1716523833543,-640.78,0.00022982,2]
[327827682,1716523833552,-640.78,0.00022988,2]
[327827683,1716523833561,-640.78,0.00022994,2]
[327827684,1716523833571,-640.78,0.00023,2]
[327827685,1716523833580,-640.78,0.00023006,2]
[327827686,1716523833589,-640.78,0.00023012,2]
[327827687,1716523833598,-640.78,0.00023018,2]
[327827688,1716523833608,-640.78,0.00023024,2]
[327827689,1716523833618,-640.78,0.0002303,2]
[327827690,1716523833627,-157.52551263,0.00023172,2]
[327827691,1716523833637,-154.5,0.000232,2]
[327827692,1716523833646,-166.66666668,0.0002337,2]
[327827693,1716523833656,-166.66666668,0.00023389,2]
[327827694,1716523833666,-2005.42016305,0.000234,2]
[327827695,1716523833675,-160.82794801,0.00023434,2]
[327827696,1716523833685,-250.0,0.00023557,2]
[327827697,1716523833694,-2000.0,0.00023557,2]
[327827698,1716523833705,-250.0,0.00023557,2]
[327827699,1716523833715,-1009.78,0.00023557,2]
[327827700,1716523833942,-3868.56,0.00023557,2]
[327827701,1716523833952,-200.0,0.00023557,2]
[327827702,1716523833962,-156.22275161,0.00023602,2]
[327827703,1716523833971,-155.94020549,0.00023782,2]
[327827704,1716523833981,-151.0,0.00023798,3]
[327827705,1716523833990,-300.0,0.000239,2]
[327827706,1716523833999,-1069.96,0.00023904,2]
[327827707,1716523834008,-166.01723724,0.00023992,2]
[327827708,1716523834018,-158.32966116,0.00023995,2]
[327827709,1716523834027,-154.14813988,0.00024073,2]
[327827710,1716523834036,-158.32966116,0.00024094,2]
[327827711,1716523834045,-160.82794801,0.00024174,2]
[327827712,1716523834054,-160.82794801,0.00024209,2]
[327827713,1716523834064,-496.24388538,0.00024214,2]
[327827714,1716523834073,-168.14407256,0.00024283,2]
[327827715,1716523834082,-154.59697747,0.00024411,2]
[327827716,1716523834091,-157.52551263,0.00024423,2]
[327827717,1716523834100,-158.32966116,0.00024442,2]
[327827718,1716523834110,-184.454578,0.00024534,2]
[327827719,1716523834119,-171.537264,0.00024534,2]
[327827720,1716523834129,-167.24791,0.00024534,2]
[327827721,1716523834138,-188.159666,0.00024534,2]
[327827722,1716523834148,-151.876941,0.00024534,2]
[327827723,1716523834158,-158.32966116,0.00024556,2]
[327827724,1716523834167,-160.82794801,0.0002464,2]
[327827725,1716523834177,-156.66264075,0.00024673,2]
[327827726,1716523834187,-157.52551263,0.00024752,2]
[327827727,1716523834196,-154.59697747,0.00024756,2]
[327827728,1716523834206,-160.82794801,0.00024774,2]
[327827729,1716523834215,-166.66666667,0.00024799,2]
[327827730,1716523834225,-160.82794801,0.00024835,2]
[327827731,1716523834235,-160.82794801,0.00024848,2]
[327827732,1716523834244,-151.0,0.00024862,5]
[327827733,1716523834255,-160.82794801,0.00024863,2]
[327827734,1716523834264,-171.537264,0.00024943,2]
[327827735,1716523834274,-166.01723725,0.00024947,2]
[327827736,1716523834284,-160.82794801,0.00025005,2]
[327827737,1716523834293,-151.876941,0.00025147,2]
[327827738,1716523834302,-816.98545036,0.00025176,2]
[327827739,1716523834311,-496.24388538,0.00025273,2]
[327827740,1716523834321,-154.86285587,0.00025287,2]
[327827741,1716523834333,-158.32966116,0.00025302,2]
[327827742,1716523834343,-171.537264,0.00025351,2]
[327827743,1716523834352,-155.85523436,0.00025447,2]
[327827744,1716523834361,-156.22275161,0.00025516,2]
[327827745,1716523834370,-153.55286719,0.0002555,2]
[327827746,1716523834380,-157.52551263,0.00025706,2]
[327827747,1716523834389,-156.66264075,0.00025719,2]
[327827748,1716523834399,-158.32966116,0.00025749,2]
[327827749,1716523834408,-171.537264,0.0002576,2]
[327827750,1716523834417,-167.24791,0.0002576,2]
[327827751,1716523834427,-151.876941,0.0002576,2]
[327827752,1716523834436,-203.18088319,0.00025778,2]
[327827753,1716523834449,-496.24388538,0.00025819,2]
[327827754,1716523834458,-156.22275161,0.00025819,2]
[327827755,1716523834468,-157.52551263,0.00025877,2]
[327827756,1716523834477,-496.24388538,0.00025925,2]
[327827757,1716523834488,-151.0,0.00025926,5]
[327827758,1716523834497,-154.14813988,0.00025937,2]
[327827759,1716523834507,-151.26879495,0.00025955,2]
[327827760,1716523834517,-158.32966116,0.00025963,2]
[327827761,1716523834529,-160.82794801,0.00025988,2]
[327827762,1716523834539,-496.24388538,0.00026024,2]
[327827763,1716523834549,-500.0,0.00026159,2]
[327827764,1716523834558,-157.52551263,0.00026164,2]
[327827765,1716523834567,-1069.96,0.00026167,2]
[327827766,1716523834576,-156.22275161,0.00026221,2]
[327827767,1716523834585,-312.7844,0.00026283,2]
[327827768,1716523834595,-158.32966116,0.00026284,2]
[327827769,1716523834605,-496.24388538,0.00026536,2]
[327827770,1716523834614,-160.82794801,0.00026548,2]
[327827771,1716523834623,-1000.0,0.00026701,2]
[327827772,1716523834633,-496.24388538,0.00026733,2]
[327827773,1716523834642,-496.24388538,0.00026738,2]
[327827774,1716523834653,-160.82794801,0.00026776,2]
[327827775,1716523834663,-959.51402587,0.00026898,2]
[327827776,1716523834672,-152.90865082,0.00026947,2]
[327827777,1716523834681,-158.32966116,0.00026952,2]
[327827778,1716523834690,-151.0,0.00026989,5]
[327827779,1716523834699,-1000.0,0.00027031,2]
[327827780,1716523834709,-159.69278022,0.00027106,2]
[327827781,1716523834718,-154.86285587,0.00027156,2]
[327827782,1716523834728,-6965.69,0.00027359,2]
[327827783,1716523834737,-160.82794801,0.00027395,2]
[327827784,1716523834746,-158.32966116,0.00027411,2]
[327827785,1716523834756,-158.32966116,0.00027549,2]
[327827786,1716523834765,-154.59697747,0.00027728,2]
[327827787,1716523834775,-166.66666666,0.00027758,2]
[327827788,1716523834784,-166.66666667,0.00027769,2]
[327827789,1716523834793,-160.82794801,0.00027803,2]
[327827790,1716523834802,-250.0,0.00027833,2]
[327827791,1716523834811,-300.0,0.000279,10]
[327827792,1716523834821,-160.82794801,0.00027902,2]
[327827793,1716523834831,-154.86285587,0.00027968,2]
[327827794,1716523834840,-893.28604291,0.00027973,2]
[327827795,1716523834849,-3136.75609502,0.00028013,2]
[327827796,1716523834859,-160.3253409,0.00028017,2]
[327827797,1716523834869,-181.13919953,0.00028029,2]
[327827798,1716523834878,-151.0,0.00028053,7]
[327827799,1716523834889,-20926.27,0.00028057,2]
[327827800,1716523834899,-152.90865082,0.00028073,2]
[327827801,1716523834908,-496.24388538,0.00028078,2]
[327827802,1716523834917,-200.0,0.00028087,2]
[327827803,1716523834927,-500.0,0.00028087,2]
[327827804,1716523834936,-500.0,0.00028102,2]
[327827805,1716523834946,-500.0,0.00028102,2]
[327827806,1716523834955,-500.0,0.00028102,2]
[327827807,1716523834964,-207.23360298,0.00028102,2]
[327827808,1716523834974,-500.0,0.00028102,2]
[327827809,1716523834984,-496.24388538,0.00028143,2]
[327827810,1716523834993,-284.0677,0.00028171,2]
[327827811,1716523835003,-496.24388538,0.00028179,2]
[327827812,1716523835012,-496.24388538,0.00028202,2]
[327827813,1716523835022,-208.99428498,0.00028312,2]
[327827814,1716523835031,-1967.47758805,0.00028312,2]
[327827815,1716523835041,-746.44866,0.00028313,2]
[327827816,1716523835051,-4170.55448335,0.00028314,4]
[327827817,1716523835060,-353.69070583,0.00028314,2]
[327827818,1716523835070,-178.8124879,0.00028314,2]
[327827819,1716523835081,-289.91389298,0.00028314,2]
[327827820,1716523835091,-155.16845575,0.00028314,2]
[327827821,1716523835101,-1365.89460453,0.00028314,2]
[327827822,1716523835110,-155.49352708,0.00028314,2]
[327827823,1716523835119,-551.71189662,0.00028314,2]
[327827824,1716523835129,-362.99054233,0.00028314,2]
[327827825,1716523835139,-411.58898442,0.00028314,2]
[327827826,1716523835149,-445.32504803,0.00028314,2]
[327827827,1716523835158,-299.59254467,0.00028314,2]
[327827828,1716523835167,-1039.20687623,0.00028314,2]
[327827829,1716523835175,-292.91785771,0.00028314,2]
[327827830,1716523835184,-157.52551263,0.00028336,2]
[327827831,1716523835194,-1000.0,0.00028385,2]
[327827832,1716523835204,-326.84704888,0.00028388,2]
[327827833,1716523835213,-1069.96,0.00028431,2]
[327827834,1716523835223,-160.82794801,0.00028437,2]
[327827835,1716523835232,-10000.0,0.00028439,2]
[327827836,1716523835242,-160.82794801,0.00028488,2]
[327827837,1716523835251,-157.52551263,0.00028544,2]
[327827838,1716523835260,-160.82794801,0.00028552,2]
[327827839,1716523835270,-158.32966116,0.00028613,2]
[327827840,1716523835279,-496.24388538,0.00028702,2]
[327827841,1716523835288,-157.52551263,0.00028842,2]
[327827842,1716523835298,-9019.41695374,0.00029,2]
[327827843,1716523835307,-2000.0,0.00029,15]
[327827844,1716523835316,-160.82794801,0.00029091,2]
[327827845,1716523835325,-154.14813988,0.00029153,2]
[327827846,1716523835335,-166.66666667,0.00029156,2]
[327827847,1716523835344,-800.0,0.00029178,2]
[327827848,1716523835354,-500.0,0.00029198,2]
[327827849,1716523835364,-351.15762593,0.00029198,2]
[327827850,1716523835373,-500.0,0.00029198,2]
[327827851,1716523835382,-500.0,0.00029198,2]
[327827852,1716523835391,-496.24388538,0.00029251,2]
[327827853,1716523835402,-2606.040207,0.000294,2]
[327827854,1716523835411,-157.52551263,0.00029412,2]
[327827855,1716523835421,-153.47564305,0.00029573,2]
[327827856,1716523835430,-496.24388538,0.00029635,2]
[327827857,1716523835440,-496.24388538,0.00029688,2]
[327827858,1716523835453,-14644.9164,0.0002978,2]
[327827859,1716523835463,-8146.242842,0.000298,2]
[327827860,1716523835472,-496.24388538,0.00029808,2]
[327827861,1716523835482,-154.86285587,0.00029846,2]
[327827862,1716523835491,-140007.64931656,0.0002988,7]
[327827863,1716523835506,-59786.7047956,0.0002988,7]
[327827864,1716523835516,-165.43186829,0.00029937,2]
[327827865,1716523835528,-151.0,0.0002999,2]
[327827866,1716523835538,-492.16639503,0.00029999,2]
[327827867,1716523835547,-492.42688818,0.00029999,2]
[327827868,1716523835558,-2000.0,0.0003,15]
[327827869,1716523835567,-5690.83016937,0.0003,2]
[327827870,1716523835577,-1003.2,0.0003,2]
[327827871,1716523835587,-13200.54075353,0.0003,4]
[327827872,1716523835753,-485.88175586,0.0003,4]
[327827873,1716523835765,-316.66161138,0.0003,4]
[327827874,1716523835775,-315.04,0.0003,2]
[327827875,1716523835784,-311.19137458,0.0003,4]
[327827882,1716523838387,-195.1689354,0.00012765,2]
[327827883,1716523838396,-187.54,0.00023557,2]
[327827884,1716523838407,-836.2910646,0.00028439,2]
[327827885,1716523838447,-996.83062869,0.00028439,2]
[327827886,1716523838507,-1135.53216571,0.00028439,2]
[327827887,1716523838520,-450.89332225,0.00028439,2]
[327827888,1716523838533,-272.32466048,0.00028439,2]
[327827889,1716523838546,-324.95664198,0.00028439,2]
[327827890,1716523838557,-2330.71214622,0.00028439,2]
[327827891,1716523838653,-3652.45937007,0.00028439,2]
[327827892,1716523838662,-89.48180684,0.0003,4]
[327827918,1716523840743,-250.4005637,0.00028439,2]
[327827926,1716523841277,-457.42953247,0.00028439,2]
[327827927,1716523841343,-2221.94984755,0.00028439,2]
[327827928,1716523841463,-1886.32148733,0.00028439,2]
[327827949,1716523843506,-623.25,0.00028439,2]
[327827958,1716523843593,-1220.00000001,0.00028439,2]
[327827962,1716523843607,-3340.64856894,0.00028439,2]
[327827965,1716523843617,-3424.71138785,0.00028439,2]
[327827968,1716523843630,-757.79565969,0.00028439,2]
[327827972,1716523843640,-68.46335503,0.0003,4]
[327827982,1716523843691,-1031.53958,0.00013689,2]
[327827986,1716523843705,-2267.5,0.00013689,2]
[327827994,1716523843747,-10060.71231089,0.00013689,2]
[327827997,1716523843760,-29974.76056405,0.00013689,2]
[327828000,1716523843770,-162.15064589,0.00017259,2]
[327828002,1716523843779,-1475.60819104,0.00029999,2]
[327828004,1716523843789,-801.81403052,0.0003,4]
[327828006,1716523843799,-155.0,0.0003,4]
[327828008,1716523843809,-150.0,0.0003,2]
[327828009,1716523843819,-72.68810614,0.0003,2]
[327828010,1716523843835,-1774.2987608,0.00029999,2]
[327828011,1716523843845,-77.31189386,0.0003,2]
[327828012,1716523843855,-150.0,0.0003,2]
[327828013,1716523843865,-150.0,0.0003,2]
[327828015,1716523843875,-150.0,0.0003,2]
[327828017,1716523843884,-150.0,0.0003,2]
[327828018,1716523843893,-150.0,0.0003,2]
[327828019,1716523843903,-150.0,0.0003,2]
[327828020,1716523843913,-150.0,0.0003,2]
[327828021,1716523843923,-150.0,0.0003,2]
[327828022,1716523843933,-150.0,0.0003,2]
[327828023,1716523843944,-150.0,0.0003,2]
[327828024,1716523843953,-150.0,0.0003,2]
[327828025,1716523843963,-150.0,0.0003,2]
[327828026,1716523843972,-500.0,0.0003,5]
[327828027,1716523843982,-150.0,0.0003,2]
[327828028,1716523843992,-150.0,0.0003,2]
[327828029,1716523844001,-150.0,0.0003,2]
[327828030,1716523844011,-150.0,0.0003,2]
[327828031,1716523844021,-27179.4572524,0.0003,4]
[327828032,1716523844031,-150.0,0.0003,2]
[327828033,1716523844040,-150.0,0.0003,2]
[327828034,1716523844050,-150.0,0.0003,2]
[327828035,1716523844060,-150.0,0.0003,2]
[327828036,1716523844070,-193.78849652,0.0003,2]
[327828037,1716523844079,-16495.21870733,0.0003,2]
[327828039,1716523845459,-344.72853411,0.00017259,2]
[327828040,1716523845469,-298.64160801,0.00017259,2]
[327828041,1716523845478,-733.4758949,0.0002,2]
[327828042,1716523845523,-7567.08157827,0.0002,2]
[327828043,1716523845538,-2750.01557726,0.0002,2]
[327828044,1716523845547,-5513.13702848,0.00021,2]
[327828045,1716523845557,-9157.92762804,0.00022,2]
[327828046,1716523845566,-2602.02371896,0.00029999,2]
[327828047,1716523845597,-1912.9668,0.00029999,2]
[327828048,1716523845608,-530.6,0.00029999,2]
[327828049,1716523845619,-322.9200001,0.00029999,2]
[327828050,1716523845630,-272.69910537,0.00029999,2]
[327828051,1716523845662,-600.55060597,0.00029999,2]
[327828052,1716523845671,-263.25204484,0.00029999,2]
[327828053,1716523845681,-469.34490006,0.00029999,2]
[327828054,1716523845727,-3730.04859743,0.00029999,2]
[327828055,1716523845738,-2768.85970387,0.00029999,2]
[327828056,1716523846038,-497.75,0.00029999,2]
[327828057,1716523846050,-1303.58494265,0.00029999,2]
[327828060,1716524452275,-162.15064589,0.00013636,2]
[327828061,1716524452296,-210.44648753,0.00013636,2]
[327828062,1716524452316,-207.58824107,0.00013636,2]
[327828063,1716524452336,-2330.40901735,0.00013636,2]
[327828064,1716524452357,-1089.40560816,0.00013636,2]
[327828065,1716524452939,-4000.0,0.00013636,2]
[327828066,1716524453446,-195.1689354,0.00013635,2]
[327828067,1716524453469,-3804.8310646,0.00013636,2]
[327828068,1716524453852,-2051.36307837,0.00013636,2]
[327828069,1716524453873,-534.9432489,0.00013637,2]
[327828070,1716524453894,-1413.69367273,0.00013637,2]
[327828071,1716524454276,-1597.05049329,0.00013637,2]
[327828072,1716524454299,-2402.94950671,0.00013637,2]
[327828073,1716524454661,-3164.93286783,0.00013637,2]
[327828074,1716524454683,-835.06713217,0.00013638,2]
[327828075,1716524455497,-345.28961683,0.00013638,2]
[327828076,1716524455519,-155.0,0.00013639,2]
[327828077,1716524455541,-782.67477937,0.00013639,2]
[327828078,1716524455564,-423.71279463,0.00013639,2]
[327828079,1716524455586,-541.36341189,0.0001364,2]
[327828080,1716524455608,-1751.95939728,0.0001364,2]
[327828081,1716524455916,-3647.27708135,0.00013635,2]
[327828082,1716524455937,-352.72291865,0.0001364,2]
[327828083,1716524458644,-815.36500545,0.0001364,2]
[327828084,1716524458668,-406.33881685,0.0001364,2]
[327828085,1716524458691,-327.02252959,0.0001364,2]
[327828086,1716524458713,-886.86936652,0.0001364,2]
[327828087,1716524458734,-1245.97765168,0.00013641,2]
[327828088,1716524458759,-155.0,0.00013641,2]
[327828089,1716524458780,-155.0,0.00013642,2]
[327828090,1716524458801,-8.42662991,0.00013642,2]
[327828091,1716524459485,-1271.08025639,0.00013536,2]
[327828092,1716524459507,-2188.02281065,0.00013636,2]
[327828093,1716524459528,-540.89693296,0.00013642,2]
[327828094,1716524461060,-4000.0,0.00013642,2]
[327828095,1716524469435,-155.0,0.0001364,2]
[327828096,1716524469458,-3845.0,0.00013641,2]
[327828097,1716524479311,-236.80578883,0.00012277,2]
[327828098,1716524479331,-208.12754346,0.0001364,2]
[327828099,1716524479355,-197.06666771,0.0001364,2]
[327828100,1716524541156,150.0,0.0001023,2]
[327828101,1716524541177,150.0,0.0001023,2]
[327828102,1716524541197,250.76381709,0.0001023,2]
[327828103,1716524541225,1998.28832118,0.0001023,2]
[327828104,1716524557088,237.76936305,0.0001023,2]
[327828105,1716524557113,2311.28277522,0.0001023,2]
[327828106,1716524575087,2549.05213827,0.0001023,2]
[327828107,1716524577809,47266.37676533,0.0001023,2]
[327828108,1716524577837,25100.0,0.0001023,2]
[327828109,1716524577862,3857.07255544,0.0001023,2]
[327828110,1716524577885,111158.02464397,0.0001023,2]
[327828111,1716524577906,199431.42009703,0.0001023,2]
[327828112,1716524578035,-150.0,0.0001023,2]
[327828113,1716524578625,-150.0,0.0001023,2]
[327828114,1716524579761,-150.0,0.0001023,2]
[327828115,1716524581474,-150.0,0.0001023,2]
[327828116,1716524582258,-150.0,0.0001023,2]
[327828117,1716524583245,-150.0,0.0001023,2]
[327828118,1716524584001,-150.0,0.0001023,2]
[327828119,1716524584728,-150.0,0.0001023,2]
[327828120,1716524585288,-150.0,0.0001023,2]
[327828121,1716524587117,-150.0,0.0001023,2]
[327828122,1716524587625,-150.0,0.0001023,2]
[327828123,1716524588225,-150.0,0.0001023,2]
[327828124,1716524588933,-150.0,0.0001023,2]
[327828125,1716524589547,-150.0,0.0001023,2]
[327828126,1716524590157,-150.0,0.00010229,2]
[327828127,1716524590635,-150.0,0.00010229,2]
[327828128,1716524591098,150.0,7.673e-05,2]
[327828129,1716524591119,150.0,7.673e-05,2]
[327828130,1716524591144,2018.38117384,7.673e-05,2]
[327828131,1716524592988,-150.0,9.719e-05,2]
[327828132,1716524593440,-150.0,9.719e-05,2]
[327828133,1716524593967,-150.0,9.719e-05,2]
[327828134,1716524598442,-150.0,0.00010229,2]
[327828135,1716524598877,-150.0,0.00010229,2]
[327828136,1716524602014,-150.0,0.00010229,2]
[327828137,1716524603506,-150.0,0.00010228,2]
[327828145,1716524921526,150.0,7.294e-05,2]
[327828146,1716524921556,27.44,7.294e-05,2]
[327828148,1716524986729,20229.281755,7.294e-05,2]
[327828149,1716524994698,150.0,7.294e-05,2]
[327828150,1716524994719,5.0,7.294e-05,2]
[327828151,1716524996380,150.0,7.294e-05,2]
[327828152,1716524996402,150.0,7.294e-05,2]
[327828153,1716524996422,150.0,7.294e-05,2]
[327828154,1716524996444,150.0,7.294e-05,2]
[327828155,1716524996464,150.0,7.294e-05,2]
[327828156,1716524996486,254.46081567,7.294e-05,2]
[327828157,1716524996508,18734.89090925,7.294e-05,2]
[327828158,1716524996868,168882.60366191,7.294e-05,2]
[327828159,1716524996893,378967.52340991,7.294e-05,2]
[327828160,1716525000747,150.0,7.294e-05,2]
[327828161,1716525000770,20079.281755,7.294e-05,2]
[327828162,1716525001771,150.0,6.929e-05,2]
[327828163,1716525001792,150.0,6.929e-05,2]
[327828164,1716525001813,150.0,6.929e-05,2]
[327828165,1716525001835,150.0,6.929e-05,2]
[327828166,1716525001857,150.0,6.929e-05,2]
[327828167,1716525001886,150.0,6.929e-05,2]
[327828168,1716525001910,56.17943807,6.929e-05,2]
[327828169,1716525002463,150.0,7.294e-05,2]
[327828170,1716525002485,150.0,7.294e-05,2]
[327828171,1716525002506,150.0,7.294e-05,2]
[327828172,1716525002527,295.0,7.294e-05,2]
[327828173,1716525002548,6776.99858144,7.294e-05,2]
[327828174,1716525003557,155.0,7.294e-05,2]
[327828175,1716525004418,-150.0,8.205e-05,2]
[327828176,1716525004444,-20.95600419,8.205e-05,2]
[327828177,1716525006957,150.0,7.294e-05,2]
[327828178,1716525006980,5.0,7.294e-05,2]
[327828179,1716525010537,234.49807171,7.294e-05,2]
[327828180,1716525010860,547850.12707182,7.294e-05,2]
[327828181,1716525014382,15150.28269468,7.294e-05,2]
[327828182,1716525015551,155.0,7.294e-05,2]
[327828183,1716525016479,7521.99858144,7.294e-05,2]
[327828184,1716525017785,271.06316573,7.294e-05,2]
[327828185,1716525020742,20229.281755,7.294e-05,2]
[327828186,1716525023854,428.95744735,6.929e-05,2]
[327828187,1716525026953,155.0,7.294e-05,2]
[327828188,1716525028859,547850.12707182,7.294e-05,2]
[327828201,1716525031783,-271.2999999,8.202e-05,2]
[327828202,1716525032130,-500.0,8.202e-05,2]
[327828203,1716525032141,-511.34363397,8.202e-05,2]
[327828204,1716525032152,-600.0,8.202e-05,2]
[327828205,1716525036472,7521.99858144,7.294e-05,2]
[327828210,1716525037558,155.0,7.294e-05,2]
[327828211,1716525037585,-1005.43930997,8.201e-05,2]
[327828218,1716525038070,-1809.20641933,8.201e-05,2]
[327828219,1716525038080,-1790.87747307,8.201e-05,2]
[327828220,1716525038089,-119.43797591,8.202e-05,2]
[327828221,1716525038099,-210.44648753,8.202e-05,2]
[327828222,1716525038109,-162.15064589,8.203e-05,2]
[327828223,1716525038119,-201.08302351,8.203e-05,2]
[327828224,1716525038129,-447.02786322,8.203e-05,2]
[327828225,1716525038139,-2330.40901735,8.203e-05,2]
[327828226,1716525038149,-155.0,8.204e-05,2]
[327828227,1716525038159,-1245.97765168,8.204e-05,2]
[327828228,1716525038168,-168.01309811,8.204e-05,2]
[327828229,1716525038178,-1064.69028387,8.204e-05,2]
[327828230,1716525038187,-295.95431653,8.204e-05,2]
[327828231,1716525038211,-361.675,8.204e-05,2]
[327828232,1716525038224,-515.29338044,8.204e-05,2]
[327828233,1716525038236,-273.28602578,8.204e-05,2]
[327828234,1716525038248,-411.655,8.204e-05,2]
[327828235,1716525038283,-417.33513399,8.204e-05,2]
[327828236,1716525038303,-1023.5008851,8.204e-05,2]
[327828237,1716525038315,-358.48667185,8.204e-05,2]
[327828238,1716525038496,-250.76381709,8.204e-05,2]
[327828239,1716525038928,-150.0,8.204e-05,2]
[327828245,1716525040086,-150.0,8.202e-05,2]
[327828246,1716525040173,-439.015,8.202e-05,2]
[327828247,1716525040751,20229.281755,7.294e-05,2]
[327828248,1716525040962,-2421.72916602,8.202e-05,2]
[327828249,1716525040974,-1509.93214376,8.204e-05,2]
[327828250,1716525040983,-1249.4780639,8.204e-05,2]
[327828251,1716525040993,-129.04399581,8.205e-05,2]
[327828252,1716525041003,-155.0,8.205e-05,2]
[327828253,1716525041013,-155.0,8.205e-05,2]
[327828254,1716525041022,-1180.356749,8.205e-05,2]
[327828255,1716525041032,-155.0,8.206e-05,2]
[327828256,1716525041042,-43334.51245494,8.206e-05,2]
[327828257,1716525041052,-3647.27708135,8.207e-05,2]
[327828258,1716525041061,-2188.02281065,8.207e-05,2]
[327828259,1716525041071,-966.33,8.219e-05,2]
[327828260,1716525041080,-178.94,8.219e-05,2]
[327828261,1716525041090,-210.0,9.026e-05,2]
[327828262,1716525041099,-171.22,9.065e-05,2]
[327828263,1716525041109,-163.68,9.118e-05,3]
[327828264,1716525041118,-4596.95,9.169e-05,2]
[327828265,1716525041128,-23900.0,9.211e-05,2]
[327828266,1716525041137,-329.89,9.569e-05,2]
[327828267,1716525041146,-1003.34,9.67e-05,2]
[327828268,1716525041156,-589.93584722,9.695e-05,2]
[327828269,1716525041165,-411.79929221,9.707e-05,2]
[327828270,1716525041174,-200.4567459,9.707e-05,2]
[327828271,1716525041184,-156.07889428,9.707e-05,2]
[327828272,1716525041193,-155.7326914,9.707e-05,2]
[327828273,1716525041202,-299.63923784,9.707e-05,2]
[327828274,1716525041212,-166.31828165,9.707e-05,2]
[327828275,1716525041223,-784.10352408,9.707e-05,2]
[327828276,1716525041233,-307.00939224,9.707e-05,2]
[327828277,1716525041242,-156.10569802,9.707e-05,2]
[327828278,1716525041251,-181.48250616,9.707e-05,2]
[327828279,1716525041261,-155.45609756,9.707e-05,2]
[327828280,1716525041271,-173.31922988,9.707e-05,2]
[327828281,1716525041281,-207.67099172,9.707e-05,2]
[327828282,1716525041290,-206.43310501,9.707e-05,2]
[327828283,1716525041300,-160.53877437,9.707e-05,2]
[327828284,1716525041309,-157.74488131,9.707e-05,2]
[327828285,1716525041319,-222.04847684,9.709e-05,2]
[327828286,1716525041328,-658.51656184,9.709e-05,2]
[327828287,1716525041337,-155.75307271,9.709e-05,2]